[Event "Titled Tuesday Blitz April 12 Early 2022"]
[White "Mikhalsky, Vladimir"]
[Black "Stanisz, Patryk"]
[WhiteFideId "14144352"]
[BlackFideId "1123106"]
[WhiteElo "2301"]
[BlackElo "1833"]
[Result "1-0"]
[Round "06"]
[TimeControl "180+1"]
[Date "2022.04.13"]
[WhiteClock "0:00:21"]
[BlackClock "0:00:03"]

1. d4 {[%clk 0:02:56]}  d5 {[%clk 0:02:59]} 2. c4 {[%clk 0:02:55]}  c6 {[%clk 0:03:00]} 3. Nf3 {[%clk 0:02:55]}  Nf6 {[%clk 0:03:00]} 4. Nc3 {[%clk 0:02:55]}  e6 {[%clk 0:03:00]} 5. e3 {[%clk 0:02:53]}  Nbd7 {[%clk 0:03:00]} 6. Qc2 {[%clk 0:02:51]}  Bd6 {[%clk 0:02:57]} 7. b3 {[%clk 0:02:49]}  Qe7 {[%clk 0:02:57]} 8. Bd3 {[%clk 0:02:46]}  O-O {[%clk 0:02:54]} 9. e4 {[%clk 0:02:44]}  dxe4 {[%clk 0:02:54]} 10. Nxe4 {[%clk 0:02:44]}  Nxe4 {[%clk 0:02:53]} 11. Bxe4 {[%clk 0:02:45]}  h6 {[%clk 0:02:52]} 12. Bb2 {[%clk 0:02:25]}  Nf6 {[%clk 0:02:49]} 13. Bd3 {[%clk 0:02:24]}  b6 {[%clk 0:02:47]} 14. O-O {[%clk 0:02:22]}  Bb7 {[%clk 0:02:45]} 15. Rfe1 {[%clk 0:02:10]}  Rfd8 {[%clk 0:02:36]} 16. Rac1 {[%clk 0:01:54]}  Ba3 {[%clk 0:02:35]} 17. c5 {[%clk 0:01:45]}  Bxb2 {[%clk 0:02:20]} 18. Qxb2 {[%clk 0:01:45]}  b5 {[%clk 0:01:46]} 19. Be4 {[%clk 0:01:39]}  a5 {[%clk 0:01:41]} 20. Ne5 {[%clk 0:01:36]}  Rdc8 {[%clk 0:01:36]} 21. Qe2 {[%clk 0:01:26]}  Rc7 {[%clk 0:00:59]} 22. Qf3 {[%clk 0:01:25]}  Rac8 {[%clk 0:00:48]} 23. a3 {[%clk 0:01:22]}  Qd8 {[%clk 0:00:46]} 24. Rcd1 {[%clk 0:01:21]}  Nxe4 {[%clk 0:00:39]} 25. Qxe4 {[%clk 0:01:20]}  Qd5 {[%clk 0:00:40]} 26. Qxd5 {[%clk 0:01:19]}  exd5 {[%clk 0:00:40]} 27. Nd3 {[%clk 0:01:11]}  Kf8 {[%clk 0:00:38]} 28. b4 {[%clk 0:01:04]}  a4 {[%clk 0:00:36]} 29. g4 {[%clk 0:00:58]}  Re8 {[%clk 0:00:28]} 30. Kg2 {[%clk 0:00:57]}  Rce7 {[%clk 0:00:28]} 31. Kg3 {[%clk 0:00:57]}  Re4 {[%clk 0:00:27]} 32. Ne5 {[%clk 0:00:52]}  Rxe1 {[%clk 0:00:20]} 33. Rxe1 {[%clk 0:00:52]}  Re7 {[%clk 0:00:20]} 34. Kf4 {[%clk 0:00:46]}  Ke8 {[%clk 0:00:20]} 35. Nd3 {[%clk 0:00:41]}  Rxe1 {[%clk 0:00:20]} 36. Nxe1 {[%clk 0:00:41]}  Ke7 {[%clk 0:00:20]} 37. h4 {[%clk 0:00:39]}  g6 {[%clk 0:00:21]} 38. g5 {[%clk 0:00:39]}  h5 {[%clk 0:00:19]} 39. Ke5 {[%clk 0:00:38]}  Bc8 {[%clk 0:00:19]} 40. Ng2 {[%clk 0:00:36]}  Bg4 {[%clk 0:00:18]} 41. Ne3 {[%clk 0:00:36]}  Bh3 {[%clk 0:00:18]} 42. f4 {[%clk 0:00:36]}  Bc8 {[%clk 0:00:17]} 43. f5 {[%clk 0:00:36]}  Bb7 {[%clk 0:00:07]} 44. Ng2 {[%clk 0:00:31]}  Bc8 {[%clk 0:00:06]} 45. fxg6 {[%clk 0:00:30]}  fxg6 {[%clk 0:00:07]} 46. Nf4 {[%clk 0:00:30]}  Bf5 {[%clk 0:00:07]} 47. Nxh5 {[%clk 0:00:29]}  Bb1 {[%clk 0:00:02]} 48. Nf4 {[%clk 0:00:26]}  Bc2 {[%clk 0:00:02]} 49. h5 {[%clk 0:00:24]}  gxh5 {[%clk 0:00:03]} 50. Nxh5 {[%clk 0:00:24]}  Bb1 {[%clk 0:00:01]} 51. Nf4 {[%clk 0:00:22]}  Bc2 {[%clk 0:00:01]} 52. g6 {[%clk 0:00:21]}  Bb1 {[%clk 0:00:02]} 53. g7 {[%clk 0:00:21]}  Kf7 {[%clk 0:00:02]} 54. Kd6 {[%clk 0:00:21]}  Kxg7 {[%clk 0:00:03]} 55. Kxc6 {[%clk 0:00:21]} 1-0


[Site "https://www.chess.com"]

[Event "Titled Tuesday Blitz April 12 Early 2022"]
[White "Mirzoev, Azer"]
[Black "Buscar, Michael"]
[WhiteFideId "13400304"]
[BlackFideId "2603616"]
[WhiteElo "2525"]
[BlackElo "2010"]
[Result "1-0"]
[Round "06"]
[TimeControl "180+1"]
[Date "2022.04.13"]
[WhiteClock "0:00:07"]
[BlackClock "0:00:01"]

1. Nf3 {[%clk 0:03:00]}  b6 {[%clk 0:02:54]} 2. b3 {[%clk 0:03:00]}  Bb7 {[%clk 0:02:54]} 3. Bb2 {[%clk 0:03:01]}  e6 {[%clk 0:02:54]} 4. e3 {[%clk 0:03:01]}  Nf6 {[%clk 0:02:54]} 5. d4 {[%clk 0:02:59]}  c5 {[%clk 0:02:51]} 6. Nbd2 {[%clk 0:02:59]}  cxd4 {[%clk 0:02:49]} 7. exd4 {[%clk 0:02:59]}  Be7 {[%clk 0:02:49]} 8. Bd3 {[%clk 0:03:00]}  d6 {[%clk 0:02:49]} 9. O-O {[%clk 0:03:00]}  O-O {[%clk 0:02:49]} 10. Re1 {[%clk 0:03:01]}  a6 {[%clk 0:02:50]} 11. c4 {[%clk 0:02:58]}  Nbd7 {[%clk 0:02:50]} 12. a4 {[%clk 0:02:55]}  Qc7 {[%clk 0:02:49]} 13. a5 {[%clk 0:02:50]}  Rfe8 {[%clk 0:02:45]} 14. axb6 {[%clk 0:02:50]}  Qxb6 {[%clk 0:02:44]} 15. Bc3 {[%clk 0:02:47]}  Nf8 {[%clk 0:02:39]} 16. h3 {[%clk 0:02:43]}  Ng6 {[%clk 0:02:39]} 17. Qc2 {[%clk 0:02:41]}  Nf4 {[%clk 0:02:34]} 18. Bf1 {[%clk 0:02:40]}  Qc6 {[%clk 0:02:34]} 19. Ra5 {[%clk 0:02:32]}  Bd8 {[%clk 0:02:14]} 20. Ra2 {[%clk 0:02:29]}  Bb6 {[%clk 0:02:15]} 21. Rea1 {[%clk 0:02:20]}  e5 {[%clk 0:02:06]} 22. d5 {[%clk 0:02:19]}  Qc5 {[%clk 0:02:03]} 23. Nb1 {[%clk 0:01:54]}  a5 {[%clk 0:01:50]} 24. Na3 {[%clk 0:01:19]}  Rec8 {[%clk 0:01:27]} 25. Nb5 {[%clk 0:01:14]}  Bxd5 {[%clk 0:01:11]} 26. cxd5 {[%clk 0:01:04]}  N6xd5 {[%clk 0:01:10]} 27. Ng5 {[%clk 0:00:42]}  Nxc3 {[%clk 0:00:44]} 28. Qxh7+ {[%clk 0:00:40]}  Kf8 {[%clk 0:00:45]} 29. Nxc3 {[%clk 0:00:41]}  Qxc3 {[%clk 0:00:36]} 30. Qh8+ {[%clk 0:00:37]}  Ke7 {[%clk 0:00:36]} 31. Qxg7 {[%clk 0:00:37]}  Qxb3 {[%clk 0:00:36]} 32. Ne4 {[%clk 0:00:12]}  Nxh3+ {[%clk 0:00:27]} 33. Kh2 {[%clk 0:00:10]}  Qd5 {[%clk 0:00:06]} 34. Qf6+ {[%clk 0:00:10]}  Ke8 {[%clk 0:00:02]} 35. Nxd6+ {[%clk 0:00:09]}  Kf8 {[%clk 0:00:02]} 36. gxh3 {[%clk 0:00:09]}  Bc7 {[%clk 0:00:02]} 37. Nf5 {[%clk 0:00:08]}  e4+ {[%clk 0:00:02]} 38. Kh1 {[%clk 0:00:08]}  Be5 {[%clk 0:00:01]} 39. Qh6+ {[%clk 0:00:07]}  Ke8 {[%clk 0:00:01]} 40. Ne3 {[%clk 0:00:07]} 1-0


[Site "https://www.chess.com"]

[Event "Titled Tuesday Blitz April 12 Early 2022"]
[White "Mohammadian, Mohammad"]
[Black "Vianello, Enrico"]
[WhiteFideId "12566055"]
[BlackFideId "810738"]
[WhiteElo "1544"]
[BlackElo "2268"]
[Result "0-1"]
[Round "06"]
[TimeControl "180+1"]
[Date "2022.04.13"]
[WhiteClock "0:00:23"]
[BlackClock "0:00:17"]

1. e4 {[%clk 0:02:57]}  d6 {[%clk 0:02:54]} 2. d4 {[%clk 0:02:56]}  Nf6 {[%clk 0:02:54]} 3. Bd3 {[%clk 0:02:54]}  g6 {[%clk 0:02:52]} 4. h3 {[%clk 0:02:52]}  Bg7 {[%clk 0:02:52]} 5. Be3 {[%clk 0:02:52]}  Nbd7 {[%clk 0:02:47]} 6. Qd2 {[%clk 0:02:52]}  h6 {[%clk 0:02:43]} 7. Nf3 {[%clk 0:02:50]}  e5 {[%clk 0:02:43]} 8. d5 {[%clk 0:02:50]}  a5 {[%clk 0:02:41]} 9. a4 {[%clk 0:02:49]}  Nc5 {[%clk 0:02:42]} 10. Nc3 {[%clk 0:02:44]}  Qe7 {[%clk 0:02:38]} 11. O-O {[%clk 0:02:42]}  Nh5 {[%clk 0:02:33]} 12. b3 {[%clk 0:02:32]}  f5 {[%clk 0:02:29]} 13. Rfe1 {[%clk 0:02:13]}  Nxd3 {[%clk 0:02:20]} 14. Qxd3 {[%clk 0:02:05]}  f4 {[%clk 0:02:17]} 15. Bd2 {[%clk 0:02:03]}  g5 {[%clk 0:02:18]} 16. Nh2 {[%clk 0:01:59]}  Nf6 {[%clk 0:02:11]} 17. f3 {[%clk 0:01:59]}  h5 {[%clk 0:02:10]} 18. Qb5+ {[%clk 0:01:56]}  Kf7 {[%clk 0:02:08]} 19. Ne2 {[%clk 0:01:45]}  g4 {[%clk 0:02:06]} 20. fxg4 {[%clk 0:01:42]}  hxg4 {[%clk 0:02:07]} 21. Nxg4 {[%clk 0:01:36]}  Bxg4 {[%clk 0:01:51]} 22. hxg4 {[%clk 0:01:35]}  Nxg4 {[%clk 0:01:51]} 23. Bxf4 {[%clk 0:01:35]}  exf4 {[%clk 0:01:38]} 24. Nxf4 {[%clk 0:01:35]}  Bd4+ {[%clk 0:01:23]} 25. Kf1 {[%clk 0:01:27]}  Rh1+ {[%clk 0:01:10]} 26. Ke2 {[%clk 0:01:26]}  Qxe4+ {[%clk 0:01:09]} 27. Kd2 {[%clk 0:01:14]}  Qxf4+ {[%clk 0:01:05]} 28. Kd3 {[%clk 0:01:05]}  Rxe1 {[%clk 0:00:32]} 29. Rxe1 {[%clk 0:01:00]}  Ne5+ {[%clk 0:00:30]} 30. Rxe5 {[%clk 0:00:55]}  Qxe5 {[%clk 0:00:27]} 31. Qd7+ {[%clk 0:00:53]}  Qe7 {[%clk 0:00:23]} 32. Qf5+ {[%clk 0:00:50]}  Bf6 {[%clk 0:00:22]} 33. Qh5+ {[%clk 0:00:47]}  Kg8 {[%clk 0:00:20]} 34. Qg6+ {[%clk 0:00:40]}  Bg7 {[%clk 0:00:20]} 35. Qe6+ {[%clk 0:00:37]}  Qxe6 {[%clk 0:00:20]} 36. dxe6 {[%clk 0:00:37]}  Re8 {[%clk 0:00:21]} 37. c3 {[%clk 0:00:34]}  Rxe6 {[%clk 0:00:22]} 38. b4 {[%clk 0:00:33]}  Rg6 {[%clk 0:00:21]} 39. bxa5 {[%clk 0:00:30]}  Rxg2 {[%clk 0:00:20]} 40. Kc4 {[%clk 0:00:30]}  Rg3 {[%clk 0:00:20]} 41. Kb5 {[%clk 0:00:28]}  Rxc3 {[%clk 0:00:19]} 42. a6 {[%clk 0:00:29]}  bxa6+ {[%clk 0:00:20]} 43. Kxa6 {[%clk 0:00:29]}  d5 {[%clk 0:00:20]} 44. a5 {[%clk 0:00:28]}  d4 {[%clk 0:00:20]} 45. Kb7 {[%clk 0:00:28]}  d3 {[%clk 0:00:20]} 46. a6 {[%clk 0:00:28]}  d2 {[%clk 0:00:20]} 47. a7 {[%clk 0:00:28]}  Ra3 {[%clk 0:00:19]} 48. a8=Q+ {[%clk 0:00:27]}  Rxa8 {[%clk 0:00:19]} 49. Kxa8 {[%clk 0:00:28]}  d1=Q {[%clk 0:00:19]} 50. Kb7 {[%clk 0:00:28]}  c5 {[%clk 0:00:19]} 51. Kc6 {[%clk 0:00:28]}  c4 {[%clk 0:00:20]} 52. Kc5 {[%clk 0:00:28]}  c3 {[%clk 0:00:21]} 53. Kc6 {[%clk 0:00:28]}  c2 {[%clk 0:00:22]} 54. Kb5 {[%clk 0:00:28]}  c1=Q {[%clk 0:00:21]} 55. Kb4 {[%clk 0:00:27]}  Qc3+ {[%clk 0:00:19]} 56. Kb5 {[%clk 0:00:27]}  Qb1+ {[%clk 0:00:19]} 57. Ka6 {[%clk 0:00:23]}  Qca1# {[%clk 0:00:17]} 0-1


[Site "https://www.chess.com"]

[Event "Titled Tuesday Blitz April 12 Early 2022"]
[White "Moroni, Luca Jr"]
[Black "Bilan, Danila"]
[WhiteFideId "865834"]
[BlackFideId "24161918"]
[WhiteElo "2573"]
[BlackElo "2164"]
[Result "1-0"]
[Round "06"]
[TimeControl "180+1"]
[Date "2022.04.13"]
[WhiteClock "0:00:38"]
[BlackClock "0:00:01"]

1. d4 {[%clk 0:03:00]}  d5 {[%clk 0:02:59]} 2. c4 {[%clk 0:02:59]}  c6 {[%clk 0:02:59]} 3. cxd5 {[%clk 0:02:56]}  cxd5 {[%clk 0:02:59]} 4. Bf4 {[%clk 0:02:56]}  Nf6 {[%clk 0:02:56]} 5. e3 {[%clk 0:02:56]}  Nc6 {[%clk 0:02:54]} 6. Nc3 {[%clk 0:02:54]}  a6 {[%clk 0:02:53]} 7. Nf3 {[%clk 0:02:52]}  e6 {[%clk 0:02:45]} 8. Bd3 {[%clk 0:02:52]}  Bd6 {[%clk 0:02:44]} 9. Bxd6 {[%clk 0:02:52]}  Qxd6 {[%clk 0:02:45]} 10. O-O {[%clk 0:02:52]}  O-O {[%clk 0:02:44]} 11. Rc1 {[%clk 0:02:51]}  b5 {[%clk 0:02:39]} 12. a4 {[%clk 0:02:48]}  b4 {[%clk 0:02:29]} 13. Nb1 {[%clk 0:02:48]}  Bd7 {[%clk 0:02:24]} 14. Nbd2 {[%clk 0:02:47]}  e5 {[%clk 0:01:59]} 15. dxe5 {[%clk 0:02:22]}  Nxe5 {[%clk 0:01:59]} 16. Nxe5 {[%clk 0:02:19]}  Qxe5 {[%clk 0:01:59]} 17. b3 {[%clk 0:02:19]}  a5 {[%clk 0:01:49]} 18. Nf3 {[%clk 0:02:17]}  Qd6 {[%clk 0:01:44]} 19. h3 {[%clk 0:02:10]}  Rfc8 {[%clk 0:01:35]} 20. Qd2 {[%clk 0:02:09]}  g6 {[%clk 0:01:23]} 21. Qb2 {[%clk 0:02:06]}  Ne4 {[%clk 0:01:01]} 22. Bxe4 {[%clk 0:01:53]}  dxe4 {[%clk 0:01:01]} 23. Nd4 {[%clk 0:01:53]}  Qe5 {[%clk 0:01:00]} 24. Rxc8+ {[%clk 0:01:47]}  Rxc8 {[%clk 0:00:58]} 25. Rc1 {[%clk 0:01:48]}  Rc5 {[%clk 0:00:27]} 26. Qb1 {[%clk 0:01:27]}  Rc3 {[%clk 0:00:18]} 27. Ne2 {[%clk 0:01:20]}  Rd3 {[%clk 0:00:09]} 28. Nd4 {[%clk 0:01:13]}  Qg5 {[%clk 0:00:06]} 29. Kh1 {[%clk 0:01:02]}  Qh5 {[%clk 0:00:05]} 30. Kh2 {[%clk 0:00:48]}  Qe5+ {[%clk 0:00:05]} 31. Kg1 {[%clk 0:00:47]}  Qg5 {[%clk 0:00:05]} 32. Ne2 {[%clk 0:00:38]}  Bxh3 {[%clk 0:00:01]} 33. Nf4 {[%clk 0:00:38]} 1-0


[Site "https://www.chess.com"]

[Event "Titled Tuesday Blitz April 12 Early 2022"]
[White "Muradov, Soltan"]
[Black "Hoang, Thi Bao Tram"]
[WhiteFideId "14002108"]
[BlackFideId "12401102"]
[WhiteElo "1854"]
[BlackElo "2125"]
[Result "0-1"]
[Round "06"]
[TimeControl "180+1"]
[Date "2022.04.13"]
[WhiteClock "0:01:44"]
[BlackClock "0:02:08"]

1. d4 {[%clk 0:03:00]}  d5 {[%clk 0:02:53]} 2. c4 {[%clk 0:03:01]}  c6 {[%clk 0:02:53]} 3. Nf3 {[%clk 0:03:01]}  Nf6 {[%clk 0:02:53]} 4. b3 {[%clk 0:02:58]}  Ne4 {[%clk 0:02:50]} 5. Qc2 {[%clk 0:02:56]}  Bf5 {[%clk 0:02:47]} 6. Nh4 {[%clk 0:02:52]}  Be6 {[%clk 0:02:45]} 7. Nd2 {[%clk 0:02:43]}  Nxd2 {[%clk 0:02:40]} 8. Bxd2 {[%clk 0:02:39]}  dxc4 {[%clk 0:02:39]} 9. e3 {[%clk 0:02:39]}  cxb3 {[%clk 0:02:38]} 10. axb3 {[%clk 0:02:40]}  g6 {[%clk 0:02:38]} 11. Qc5 {[%clk 0:02:17]}  Nd7 {[%clk 0:02:32]} 12. Qb4 {[%clk 0:02:18]}  Qc7 {[%clk 0:02:29]} 13. Bd3 {[%clk 0:02:09]}  Bg7 {[%clk 0:02:28]} 14. O-O {[%clk 0:02:10]}  O-O {[%clk 0:02:27]} 15. Qxe7 {[%clk 0:02:08]}  Bf6 {[%clk 0:02:26]} 16. Qb4 {[%clk 0:01:59]}  Bxh4 {[%clk 0:02:25]} 17. Rfc1 {[%clk 0:02:00]}  Bf6 {[%clk 0:02:21]} 18. h3 {[%clk 0:01:51]}  Qb6 {[%clk 0:02:16]} 19. Qd6 {[%clk 0:01:46]}  c5 {[%clk 0:02:10]} 20. dxc5 {[%clk 0:01:43]}  Qxd6 {[%clk 0:02:09]} 21. cxd6 {[%clk 0:01:44]}  Bxa1 {[%clk 0:02:08]} 22. Rxa1 {[%clk 0:01:44]} 0-1


[Site "https://www.chess.com"]

[Event "Titled Tuesday Blitz April 12 Early 2022"]
[White "Myshakov, Fyodor"]
[Black "Bures, Vit"]
[WhiteFideId "14111284"]
[BlackFideId "309052"]
[WhiteElo "2310"]
[BlackElo "2079"]
[Result "1/2-1/2"]
[Round "06"]
[TimeControl "180+1"]
[Date "2022.04.13"]
[WhiteClock "0:00:15"]
[BlackClock "0:00:02"]

1. c4 {[%clk 0:02:52]}  Nf6 {[%clk 0:02:59]} 2. Nc3 {[%clk 0:02:51]}  c5 {[%clk 0:02:59]} 3. Nf3 {[%clk 0:02:52]}  e6 {[%clk 0:02:59]} 4. g3 {[%clk 0:02:53]}  b6 {[%clk 0:02:58]} 5. Bg2 {[%clk 0:02:53]}  Bb7 {[%clk 0:02:59]} 6. O-O {[%clk 0:02:54]}  Be7 {[%clk 0:02:57]} 7. d4 {[%clk 0:02:54]}  cxd4 {[%clk 0:02:57]} 8. Qxd4 {[%clk 0:02:55]}  O-O {[%clk 0:02:57]} 9. b3 {[%clk 0:02:55]}  d6 {[%clk 0:02:55]} 10. Bb2 {[%clk 0:02:56]}  Nbd7 {[%clk 0:02:54]} 11. Rfd1 {[%clk 0:02:56]}  a6 {[%clk 0:02:45]} 12. Ng5 {[%clk 0:02:54]}  Bxg2 {[%clk 0:02:43]} 13. Kxg2 {[%clk 0:02:55]}  Qc7 {[%clk 0:02:30]} 14. Nce4 {[%clk 0:02:54]}  e5 {[%clk 0:02:10]} 15. Nxf6+ {[%clk 0:02:44]}  Nxf6 {[%clk 0:02:00]} 16. Qd2 {[%clk 0:02:43]}  Rfd8 {[%clk 0:01:41]} 17. e4 {[%clk 0:02:39]}  Qc6 {[%clk 0:01:34]} 18. f3 {[%clk 0:02:39]}  b5 {[%clk 0:01:26]} 19. Rac1 {[%clk 0:02:39]}  Rac8 {[%clk 0:01:25]} 20. Nh3 {[%clk 0:02:38]}  h6 {[%clk 0:01:18]} 21. Nf2 {[%clk 0:02:38]}  bxc4 {[%clk 0:01:18]} 22. Rxc4 {[%clk 0:02:38]}  Qb7 {[%clk 0:01:17]} 23. Rdc1 {[%clk 0:02:37]}  Rxc4 {[%clk 0:01:15]} 24. Rxc4 {[%clk 0:02:38]}  d5 {[%clk 0:01:15]} 25. exd5 {[%clk 0:02:37]}  Rxd5 {[%clk 0:01:09]} 26. Qe2 {[%clk 0:02:35]}  Qd7 {[%clk 0:00:59]} 27. Bxe5 {[%clk 0:02:24]}  Rd2 {[%clk 0:00:57]} 28. Qe1 {[%clk 0:02:24]}  Rxa2 {[%clk 0:00:52]} 29. Rc7 {[%clk 0:02:23]}  Qe6 {[%clk 0:00:49]} 30. Qc3 {[%clk 0:02:10]}  Nd5 {[%clk 0:00:44]} 31. Rc8+ {[%clk 0:02:09]}  Kh7 {[%clk 0:00:36]} 32. Qd3+ {[%clk 0:02:01]}  f5 {[%clk 0:00:37]} 33. f4 {[%clk 0:01:31]}  Nb4 {[%clk 0:00:35]} 34. Qc4 {[%clk 0:01:08]}  Nd5 {[%clk 0:00:28]} 35. Rc6 {[%clk 0:00:55]}  Ne3+ {[%clk 0:00:25]} 36. Kf3 {[%clk 0:00:55]}  Qd7 {[%clk 0:00:12]} 37. Rc7 {[%clk 0:00:34]}  Nxc4 {[%clk 0:00:06]} 38. Rxd7 {[%clk 0:00:34]}  Nxe5+ {[%clk 0:00:07]} 39. fxe5 {[%clk 0:00:34]}  Bc5 {[%clk 0:00:07]} 40. Nd3 {[%clk 0:00:33]}  Bb6 {[%clk 0:00:08]} 41. Rb7 {[%clk 0:00:32]}  Bd4 {[%clk 0:00:07]} 42. e6 {[%clk 0:00:32]}  Bf6 {[%clk 0:00:04]} 43. e7 {[%clk 0:00:31]}  Bxe7 {[%clk 0:00:04]} 44. Rxe7 {[%clk 0:00:31]}  Rxh2 {[%clk 0:00:05]} 45. Ra7 {[%clk 0:00:28]}  Rd2 {[%clk 0:00:05]} 46. Ke3 {[%clk 0:00:27]}  Rg2 {[%clk 0:00:05]} 47. Kf3 {[%clk 0:00:20]}  Rd2 {[%clk 0:00:06]} 48. Nf4 {[%clk 0:00:20]}  Rc2 {[%clk 0:00:05]} 49. Ne6 {[%clk 0:00:19]}  Rc3+ {[%clk 0:00:06]} 50. Kf4 {[%clk 0:00:19]}  Rxb3 {[%clk 0:00:06]} 51. Nxg7 {[%clk 0:00:20]}  Kg6 {[%clk 0:00:06]} 52. Ne6 {[%clk 0:00:16]}  Rb4+ {[%clk 0:00:05]} 53. Kf3 {[%clk 0:00:17]}  Rb3+ {[%clk 0:00:03]} 54. Kg2 {[%clk 0:00:17]}  Ra3 {[%clk 0:00:02]} 55. Nf4+ {[%clk 0:00:17]}  Kg5 {[%clk 0:00:02]} 56. Rg7+ {[%clk 0:00:16]}  Kf6 {[%clk 0:00:02]} 57. Rg6+ {[%clk 0:00:17]}  Ke5 {[%clk 0:00:02]} 58. Re6+ {[%clk 0:00:17]}  Kd4 {[%clk 0:00:02]} 59. Rxh6 {[%clk 0:00:18]}  a5 {[%clk 0:00:02]} 60. Rf6 {[%clk 0:00:18]}  Ke4 {[%clk 0:00:02]} 61. Re6+ {[%clk 0:00:18]}  Kd4 {[%clk 0:00:02]} 62. Ne2+ {[%clk 0:00:15]}  Kd5 {[%clk 0:00:02]} 63. Nf4+ {[%clk 0:00:15]}  Kd4 {[%clk 0:00:02]} 64. Kh3 {[%clk 0:00:16]}  a4 {[%clk 0:00:02]} 65. Ra6 {[%clk 0:00:16]}  Ra1 {[%clk 0:00:02]} 66. Kh4 {[%clk 0:00:15]}  a3 {[%clk 0:00:01]} 67. Kg5 {[%clk 0:00:15]}  a2 {[%clk 0:00:01]} 68. Kxf5 {[%clk 0:00:16]}  Kc4 {[%clk 0:00:02]} 69. g4 {[%clk 0:00:16]}  Kb3 {[%clk 0:00:02]} 70. Rb6+ {[%clk 0:00:15]}  Ka3 {[%clk 0:00:03]} 71. Ra6+ {[%clk 0:00:14]}  Kb3 {[%clk 0:00:03]} 72. g5 {[%clk 0:00:14]}  Rf1 {[%clk 0:00:02]} 73. g6 {[%clk 0:00:14]}  a1=Q {[%clk 0:00:02]} 74. Rxa1 {[%clk 0:00:14]}  Rxa1 {[%clk 0:00:03]} 75. Ne6 {[%clk 0:00:12]}  Rg1 {[%clk 0:00:04]} 76. Ng5 {[%clk 0:00:13]}  Rf1+ {[%clk 0:00:02]} 77. Ke6 {[%clk 0:00:13]}  Rg1 {[%clk 0:00:02]} 78. Kf6 {[%clk 0:00:13]}  Rf1+ {[%clk 0:00:03]} 79. Kg7 {[%clk 0:00:13]}  Rg1 {[%clk 0:00:04]} 80. Kh6 {[%clk 0:00:13]}  Rh1+ {[%clk 0:00:04]} 81. Kg7 {[%clk 0:00:13]}  Rg1 {[%clk 0:00:05]} 82. Kf6 {[%clk 0:00:12]}  Rf1+ {[%clk 0:00:05]} 83. Ke5 {[%clk 0:00:13]}  Rg1 {[%clk 0:00:06]} 84. Kf4 {[%clk 0:00:13]}  Rf1+ {[%clk 0:00:06]} 85. Kg4 {[%clk 0:00:13]}  Rg1+ {[%clk 0:00:06]} 86. Kf4 {[%clk 0:00:13]}  Rf1+ {[%clk 0:00:07]} 87. Kg3 {[%clk 0:00:14]}  Rf6 {[%clk 0:00:06]} 88. g7 {[%clk 0:00:09]}  Rg6 {[%clk 0:00:06]} 89. Kg4 {[%clk 0:00:09]}  Rxg7 {[%clk 0:00:07]} 90. Kf5 {[%clk 0:00:10]}  Ra7 {[%clk 0:00:07]} 91. Ne6 {[%clk 0:00:11]}  Ra5+ {[%clk 0:00:08]} 92. Ke4 {[%clk 0:00:11]}  Kc4 {[%clk 0:00:08]} 93. Nf4 {[%clk 0:00:11]}  Ra8 {[%clk 0:00:08]} 94. Ne6 {[%clk 0:00:11]}  Re8 {[%clk 0:00:09]} 95. Ke5 {[%clk 0:00:12]}  Re7 {[%clk 0:00:08]} 96. Kd6 {[%clk 0:00:12]}  Ra7 {[%clk 0:00:08]} 97. Ke5 {[%clk 0:00:13]}  Ra5+ {[%clk 0:00:07]} 98. Ke4 {[%clk 0:00:13]}  Rh5 {[%clk 0:00:06]} 99. Nf4 {[%clk 0:00:13]}  Rh4 {[%clk 0:00:06]} 100. Ke5 {[%clk 0:00:13]}  Rh1 {[%clk 0:00:05]} 101. Ne6 {[%clk 0:00:13]}  Re1+ {[%clk 0:00:05]} 102. Kd6 {[%clk 0:00:13]}  Re2 {[%clk 0:00:05]} 103. Nc7 {[%clk 0:00:13]}  Rd2+ {[%clk 0:00:02]} 104. Kc6 {[%clk 0:00:13]}  Rh2 {[%clk 0:00:02]} 105. Ne6 {[%clk 0:00:13]}  Rh6 {[%clk 0:00:02]} 106. Kd6 {[%clk 0:00:14]}  Rg6 {[%clk 0:00:03]} 107. Ke5 {[%clk 0:00:14]}  Rg8 {[%clk 0:00:02]} 108. Kd6 {[%clk 0:00:15]}  Rg1 {[%clk 0:00:02]} 109. Ke5 {[%clk 0:00:15]}  Re1+ {[%clk 0:00:03]} 110. Kd6 {[%clk 0:00:15]}  Kb5 {[%clk 0:00:03]} 111. Nd4+ {[%clk 0:00:15]}  Kc4 {[%clk 0:00:02]} 112. Ne6 {[%clk 0:00:15]} 1/2-1/2


[Site "https://www.chess.com"]